Cogmind - Beta 13 @@@ ROGUE MODE // 2024.04.03 @ 18:38:04 Player: Salamander Result: Destroyed by L-31 Rogue with Katana Performance ------------- Evolutions (2) 1000 Regions Visited (5) 1000 Robots Destroyed (20) 100 Value Destroyed (782) 782 Prototype IDs (0) 0 Alien Tech Used (0) 0 Bonus (0) 0 TOTAL SCORE: 2882 Bonus ------- None Cogmind --------- Core Integrity 0/550 Matter 300/300 Energy 160/160 System Corruption 1% Temperature Hot (257) Movement Walking (120) Location -8/Materials Parts ------- > --- POWER (2) -------- Light Nuclear Core > --- PROPULSION (2) --- Carbon-fiber Leg > --- UTILITY (4) ------ Advanced Visual Processing Unit Signal Interpreter Targeting Computer > --- WEAPON (3) ------- Particle Gun > --- INVENTORY (5) ---- Heat Sink Experimental Sensor Array Peak State ------------ > --- POWER ------------ Light Nuclear Core Light Nuclear Core > --- PROPULSION ------- Carbon-fiber Leg Carbon-fiber Leg > --- UTILITY ---------- Advanced Visual Processing Unit Signal Interpreter Targeting Computer Power Shielding > --- WEAPON ----------- Particle Gun Gauss Rifle > --- INVENTORY -------- Heat Sink Experimental Sensor Array Explosive Trap [Rating: 25] Favorites ----------- Power Ion Engine Engine Ion Engine Power Core Light Nuclear Core Propulsion Aluminum Leg Leg Aluminum Leg Wheel Wheel Utility Small Storage Unit Device Structural Scanner Storage Small Storage Unit Processor Visual Processing Unit Protection Power Shielding Weapon Small Laser Energy Gun Small Laser Ballistic Gun Shotgun Launcher Grenade Launcher Special Weapon Welding Torch Build | -11 -10 -10 -9 -9 -8 ------- Run | Yrd Mat Min Mat Min Mat Slots Evolved 4 | . . . 2 . 2 Power 1 | . . . 1 . . Propulsion . | . . . . . . Utility 2 | . . . 1 . 1 Weapon 1 | . . . . . 1 Parts Attached 33 | 7 2 5 6 . 13 Power 6 | 2 . 1 1 . 2 Engine 4 | 2 . 1 1 . . Core 2 | . . . . . 2 Reactor . | . . . . . . Propulsion 8 | 2 . 2 1 . 3 Treads . | . . . . . . Leg 6 | . . 2 1 . 3 Wheel 2 | 2 . . . . . Hover . | . . . . . . Flight . | . . . . . . Utility 7 | 1 1 . 2 . 3 Device 1 | . 1 . . . . Storage 1 | 1 . . . . . Processor 4 | . . . 1 . 3 Hackware . | . . . . . . Protection 1 | . . . 1 . . Artifact . | . . . . . . Weapon 12 | 2 1 2 2 . 5 Energy Gun 5 | 1 1 1 1 . 1 Energy Cannon . | . . . . . . Ballistic Gun 4 | 1 . . 1 . 2 Ballistic Cannon . | . . . . . . Launcher 2 | . . 1 . . 1 Special Weapon 1 | . . . . . 1 Impact Weapon . | . . . . . . Slashing Weapon . | . . . . . . Piercing Weapon . | . . . . . . Special Melee Weapon . | . . . . . . Unidentified Prototypes . | . . . . . . Parts Lost 21 | . . 4 3 . 14 Power 4 | . . 1 . . 3 Propulsion 6 | . . 2 1 . 3 Utility 3 | . . . 1 . 2 Weapon 8 | . . 1 1 . 6 Highest Loss Streak 9 | . . 4 1 . 9 To Critical Strikes . | . . . . . . Average Slot Usage (%) 90 | . 97 87 84 100 86 Engine 13 | . 14 6 12 22 12 Leg 15 | . . 18 19 22 16 Wheel 5 | . 28 7 . . . Device 4 | . 14 14 1 . . Storage 10 | . 14 14 11 11 7 Processor 9 | . . . 10 11 18 Protection 6 | . . . 8 11 9 Energy Gun 9 | . 12 8 10 11 7 Ballistic Gun 12 | . 14 14 11 11 12 Naked Turns . | . . . . . . Heaviest Build 21 | 12 13 15 18 18 21 Greatest Support 30 | 26 26 26 20 20 30 Greatest Overweight (x) 3 | . . 2 1 . 3 Average Overweight (x) . | . . . . . . Largest Inventory Capacity 8 | 8 8 8 8 8 8 Average Capacity 7 | 7 8 8 8 8 7 Most Carried 8 | 3 6 8 8 8 8 Average Carried 6 | 1 3 7 7 7 6 Final Capacity 8 | 8 8 8 8 8 5 Final Carried 8 | 3 6 8 7 8 2 Class Distribution -------------------- 86% | Mutant 13% | Tank Dominant Class ---------------- Mutant | -10/Materials Mutant | -10/Mines Mutant | -9/Materials Mutant | -9/Mines Tank | -8/Materials Resources | -11 -10 -10 -9 -9 -8 ----------- Run | Yrd Mat Min Mat Min Mat Matter Collected 723 | 222 70 69 155 4 203 Remotely . | . . . . . . Salvage Created 772 | . 42 74 223 . 433 Parts 47 | . 2 5 11 . 29 Haulers Intercepted . | . . . . . . Recyclers Shooed . | . . . . . . Parts Field Recycled . | . . . . . . Retrieved Matter . | . . . . . . Parts Self-Destructed . | . . . . . . Prevented . | . . . . . . Kills | -11 -10 -10 -9 -9 -8 ------- Run | Yrd Mat Min Mat Min Mat Combat Hostiles Destroyed 18 | . 3 2 7 . 6 Guns 16 | . 3 2 7 . 4 AOE 2 | . . . . . 2 Classes Destroyed 7 | . 1 1 1 . 4 Recycler 1 | . . . . . 1 Watcher 1 | . . . . . 1 Swarmer 5 | . 3 . 2 . . Grunt 7 | . . 2 3 . 2 Sentry 3 | . . . 2 . 1 Specialist 2 | . . . . . 2 Hunter 1 | . . . . . 1 Best Kill Streak 3 | . 3 2 2 . 3 Combat Bots Only 3 | . 3 2 2 . 2 Max Kills in Single Turn 2 | . 1 1 1 . 2 Gunslinging . | . . . . . . Exploded 2 | . . . . . 2 Melee . | . . . . . . Uniques/NPCs Destroyed . | . . . . . . Combat | -11 -10 -10 -9 -9 -8 -------- Run | Yrd Mat Min Mat Min Mat Hostile Shots Fired 230 | . 22 33 64 . 111 Missed 54 | . 7 5 19 . 23 Damage Taken 2592 | . 117 382 498 . 1595 Core 807 | . 12 101 142 . 552 Absorbed by Shields . | . . . . . . Redirected to Shielding 52 | . . . 3 . 49 Regen/Repaired (Parts) 38 | . 38 . . . . Core Remaining (%) 72 | 100 . 54 . 64 . Volleys Fired 92 | . 12 21 30 . 29 Largest 3 | . 1 1 2 . 3 Hottest 96 | . 20 30 65 . 96 Shots Fired 135 | . 12 21 38 . 64 Gun 129 | . 12 19 38 . 60 Cannon . | . . . . . . Launcher 5 | . . 2 . . 3 Special 1 | . . . . . 1 Kinetic 97 | . 12 19 27 . 39 Thermal 33 | . . . 11 . 22 Explosive 2 | . . 2 . . . Electromagnetic 3 | . . . . . 3 Robot Hit Streak 9 | . 5 7 9 . 9 Robot Miss Streak 5 | . 5 2 5 . 3 Penetration Max . | . . . . . . Secondary Targets 1 | . . . . . 1 Max Gunslinging Chain 1 | . . . . . 1 Shots Hit Robots 88 | . 5 15 27 . 41 Core Hits 45 | . 4 5 12 . 24 Critical Kills 1 | . . 1 . . . Critical Parts Destroyed . | . . . . . . Critical Strikes 2 | . . 1 . . 1 Burn 1 | . . . . . 1 Destroy 1 | . . 1 . . . Melee Attacks . | . . . . . . Impact . | . . . . . . Slashing . | . . . . . . Piercing . | . . . . . . Sneak Attacks . | . . . . . . Combat Hostiles . | . . . . . . Follow-up Attacks . | . . . . . . Damage Inflicted 1525 | . 41 257 406 . 821 Guns 1211 | . 41 129 402 . 639 Cannons . | . . . . . . Explosions 304 | . . 128 . . 176 Melee . | . . . . . . Ramming 10 | . . . 4 . 6 Kinetic 977 | . 41 129 332 . 475 Thermal 234 | . . . 70 . 164 Explosive 128 | . . 128 . . . Electromagnetic 176 | . . . . . 176 Impact . | . . . . . . Slashing . | . . . . . . Piercing . | . . . . . . Highest Corruption 1 | . . . . . 1 Average Corruption 1 | . . . . . 1 Corruption Purged . | . . . . . . Corruption Blocked . | . . . . . . Effects 1 | . . . . . 1 Matter Fused 1 | . . . . . 1 Overload Shots . | . . . . . . Overflow Damage . | . . . . . . Projectiles . | . . . . . . Explosions . | . . . . . . Melee . | . . . . . . Knockbacks . | . . . . . . Impact . | . . . . . . Kinetic . | . . . . . . Secondary . | . . . . . . Self-Inflicted Damage 15 | . . . . . 15 Shots 1 | . . . . . 1 Rammed . | . . . . . . Targets Rammed 6 | . . . 1 . 5 Kicked 6 | . . . 1 . 5 Crushed . | . . . . . . Highest Temperature 257 | . . 33 54 . 257 Average Temperature 37 | . . 11 15 . 52 Received Heat Transfer 876 | . . 234 138 . 504 Siege Activations . | . . . . . . Robots Corrupted . | . . . . . . Combat Hostiles . | . . . . . . Parts Fried 1 | . . . . . 1 Impact Corruptions . | . . . . . . Robots Melted . | . . . . . . Combat Hostiles . | . . . . . . Parts Melted . | . . . . . . Heat Transferred 622 | . . . 162 . 460 Parts Sabotaged . | . . . . . . Parts Stolen . | . . . . . . Parts Stripped . | . . . . . . Power Chain Reactions . | . . . . . . Alert | -11 -10 -10 -9 -9 -8 ------- Run | Yrd Mat Min Mat Min Mat Peak Influence 342 | . 115 65 232 90 342 Initial 90 | . . 44 25 90 35 Average 107 | . 74 61 131 90 145 Maximum Alert Level 1 | . . . 1 . 1 Low Security (%) 87 | 100 100 100 81 100 72 Level 1 12 | . . . 18 . 27 Level 2 . | . . . . . . Level 3 . | . . . . . . Level 4 . | . . . . . . Level 5 . | . . . . . . High Security . | . . . . . . Max Security . | . . . . . . Squads Dispatched 9 | . 1 . 2 . 6 Investigation 1 | . . . . . 1 Extermination . | . . . . . . Reinforcement 6 | . 1 . 2 . 3 Assault 1 | . . . . . 1 Garrison 1 | . . . . . 1 Intercept . | . . . . . . Searches Triggered . | . . . . . . Construction Impeded 1 | . . . . . 1 Haulers Reinforced . | . . . . . . Active Scanning Responses . | . . . . . . Cargo Convoy Interrupts . | . . . . . . Stealth | -11 -10 -10 -9 -9 -8 --------- Run | Yrd Mat Min Mat Min Mat Distress Signals 2 | . 1 . . . 1 Communications Jammed . | . . . . . . Distress Signals . | . . . . . . Times Spotted 34 | . 6 2 11 . 15 Peak Tracking Total 6 | . 3 2 6 . 6 Tactical Retreats 2 | . . . 1 . 1 Traps | -11 -10 -10 -9 -9 -8 ------- Run | Yrd Mat Min Mat Min Mat Traps Triggered . | . . . . . . Indirectly . | . . . . . . Trap Hack Attempts . | . . . . . . Triggered . | . . . . . . Disarmed . | . . . . . . Reprogrammed . | . . . . . . Reused . | . . . . . . Traps Extracted . | . . . . . . Installed . | . . . . . . Triggered . | . . . . . . Most Traps Carried 1 | . . . . 1 1 Machines | -11 -10 -10 -9 -9 -8 ---------- Run | Yrd Mat Min Mat Min Mat Machines Disabled 2 | . . . . . 2 Max in Single Turn 2 | . . . . . 2 Garrison Access 1 | . . . . . 1 Machines Repaired . | . . . . . . Machines Dismantled . | . . . . . . Machines Sabotaged . | . . . . . . Overloaded Fab Kills . | . . . . . . Hacking | -11 -10 -10 -9 -9 -8 --------- Run | Yrd Mat Min Mat Min Mat Machines Accessed 6 | . 2 . 3 . 1 Terminals 3 | . . . 3 . . Fabricators . | . . . . . . Repair Stations 1 | . 1 . . . . Recycling Units 2 | . 1 . . . 1 Scanalyzers . | . . . . . . Garrison Access . | . . . . . . Total Hacks 16 | . 4 . 9 . 3 Successful 11 | . 3 . 6 . 2 Failed 5 | . 1 . 3 . 1 Catastrophic . | . . . . . . Database Lockouts . | . . . . . . Manual . | . . . . . . Terminals 9 | . . . 9 . . Fabricators . | . . . . . . Repair Stations 2 | . 2 . . . . Recycling Units 5 | . 2 . . . 3 Scanalyzers . | . . . . . . Garrison Access . | . . . . . . Terminal Hacks 6 | . . . 6 . . Record 6 | . . . 6 . . Fabricator Hacks . | . . . . . . Repair Station Hacks 2 | . 2 . . . . Scan Component 1 | . 1 . . . . Repair 1 | . 1 . . . . Recycling Unit Hacks 3 | . 1 . . . 2 Recycle Component 1 | . . . . . 1 Process 1 | . . . . . 1 Report Inventory 1 | . 1 . . . . Scanalyzer . | . . . . . . Garrison Access Hacks . | . . . . . . Unauthorized Hacks . | . . . . . . Terminals . | . . . . . . Fabricators . | . . . . . . Repair Stations . | . . . . . . Recycling Units . | . . . . . . Scanalyzers . | . . . . . . Garrison Access . | . . . . . . Data Cores Recovered . | . . . . . . Used . | . . . . . . Hacking Detections 2 | . . . 1 . 1 Full Trace Events 1 | . . . . . 1 Feedback Events . | . . . . . . Feedback Blocked . | . . . . . . Robot Schematics Acquired . | . . . . . . Robots Built . | . . . . . . Authchips . | . . . . . . Time . | . . . . . . Total Robot Build Rating . | . . . . . . Part Schematics Acquired . | . . . . . . Parts Built . | . . . . . . Authchips . | . . . . . . Time . | . . . . . . Total Part Build Rating . | . . . . . . Parts Repaired 1 | . 1 . . . . Time 26 | . 26 . . . . Parts Recycled 1 | . . . . . 1 Recycled Matter 9 | . . . . . 9 Retrieved Matter . | . . . . . . Retrieved Components . | . . . . . . Parts Scanalyzed . | . . . . . . Part Schematics Acquired . | . . . . . . Parts Damaged . | . . . . . . Bothacking | -11 -10 -10 -9 -9 -8 ------------ Run | Yrd Mat Min Mat Min Mat Used RIF Installer . | . . . . . . Robots Hacked . | . . . . . . Non-combat . | . . . . . . Combat . | . . . . . . Robot Hacks Applied . | . . . . . . Relay Couplers Released 1 | . . . . . 1 Machine Destruction 1 | . . . . . 1 Fabnet Peak Effective % . | . . . . . . Robots Rewired . | . . . . . . Allies Hacked . | . . . . . . Hacks Repelled . | . . . . . . Allies | -11 -10 -10 -9 -9 -8 -------- Run | Yrd Mat Min Mat Min Mat Total Allies . | . . . . . . Largest Group . | . . . . . . Highest-Rated Group . | . . . . . . Highest-Rated Ally . | . . . . . . Total Orders . | . . . . . . Ally Attacks . | . . . . . . Total Damage . | . . . . . . Kills . | . . . . . . Allies Corrupted . | . . . . . . Allies Melted . | . . . . . . Intel | -11 -10 -10 -9 -9 -8 ------- Run | Yrd Mat Min Mat Min Mat Robot Analysis Total . | . . . . . . Derelict Logs Recovered 1 | . . . . 1 . Drone Launches . | . . . . . . Drone Recoveries . | . . . . . . Exploration | -11 -10 -10 -9 -9 -8 ------------- Run | Yrd Mat Min Mat Min Mat Turns Passed 1277 | 42 221 129 351 204 330 Spaces Moved 807 | 35 202 68 187 167 148 Core 3 | 1 . 1 . . 1 Treads . | . . . . . . Legs 567 | . . 66 187 167 147 Wheels 237 | 34 202 1 . . . Hover . | . . . . . . Flight . | . . . . . . Fastest Speed 50 | 50 90 90 120 120 120 Average Speed 117 | 86 90 120 127 120 143 Slowest Speed 200 | 90 90 150 190 120 200 Overloaded Moves . | . . . . . . Propulsion Burnouts . | . . . . . . Robots Hopped . | . . . . . . Cave-ins Triggered . | . . . . . . Exploration Rate (%) 23 | 4 36 23 19 46 12 Regions Visited 5 Branch Regions 2 Pre-discovered Areas . | . . . . . . Known Exits Taken . | . . . . . . Unknown Exits Taken 5 | 1 1 1 1 1 . Scrap Searched 1 | . . . . 1 . Spaces Dug . | . . . . . . Terrain Destroyed 17 | . . 17 . . . Melee . | . . . . . . Projectile . | . . . . . . AOE 17 | . . 17 . . . Terrain Rammed . | . . . . . . Walls Destroyed . | . . . . . . Machines Disabled . | . . . . . . Actions | -11 -10 -10 -9 -9 -8 --------- Run | Yrd Mat Min Mat Min Mat Total 1012 | 43 230 97 260 170 212 Wait 57 | . 12 . 32 3 10 Move 802 | 34 201 67 186 166 148 Hop . | . . . . . . Pick Up 16 | 2 3 3 3 1 4 Fast Attach 18 | 6 2 3 3 . 4 Attach 14 | . . 2 3 . 9 Detach 2 | . . 1 . . 1 Swap 1 | 1 . . . . . Drop 4 | . . . 2 . 2 Fire 92 | . 12 21 30 . 29 Melee . | . . . . . . Ram . | . . . . . . Kick 6 | . . . 1 . 5 Crush . | . . . . . . Escape Stasis . | . . . . . . Rewire . | . . . . . . Trap . | . . . . . . Miscellaneous . | . . . . . . Route ------- -11/Scrapyard -10/Materials -10/Mines -9/Materials -9/Mines -8/Materials History --------- Turn | Location | Event 19 | -11/Scrapyard | Discovered new exit (range 15) 43 | -11/Scrapyard | Entered Materials 195 | -10/Materials | Repaired Sml. Laser 218 | -10/Materials | Discovered new exit (range 6) 264 | -10/Materials | Entered Mines 305 | -10/Mines | Build established: Mutant 331 | -10/Mines | Lost 4 parts (1p2n1w) 367 | -10/Mines | Found a damaged Exp. Sensor Array with a note attached 370 | -10/Mines | Found Prototype Device 380 | -10/Mines | Discovered new exit (range 12) 393 | -10/Mines | Entered Materials 393 | -9/Materials | Evolved 2 slots: Power x1, Utility x1 737 | -9/Materials | Discovered new exit (range 7) 744 | -9/Materials | Entered Mines 767 | -9/Mines | Met a Derelict bent on vengeance 844 | -9/Mines | Found a hidden stash of uninstalled traps 855 | -9/Mines | Discovered new exit (range 5) 948 | -9/Mines | Entered Materials 948 | -8/Materials | Evolved 2 slots: Utility x1, Weapon x1 1184 | -8/Materials | Garrison activated, responded to threat 1215 | -8/Materials | Core integrity fell below 50% 1247 | -8/Materials | Lost 9 parts (1p2n1u5w) 1275 | -8/Materials | Core integrity fell below 20% 1278 | -8/Materials | Destroyed by L-31 Rogue with Katana Last Messages --------------- L-31 Rogue unfolds itself. B-36 Bruiser unfolds itself. M-28 Smith unfolds itself. Dropped Explosive Trap. K-01 Serf collects debris. Acquired 20 matter. K-01 Serf collects debris. Slug penetrates G-50 Soldier. K-01 Serf collects debris. G-50 Soldier suffers critical hit (Burn). K-01 Serf collects debris. Slug penetrates G-50 Soldier. Power Shielding destroyed. Slug penetrates G-50 Soldier. K-01 Serf collects debris. Carbon-fiber Leg destroyed. G-50 Soldier heat damages Hvy. Laser. Slug penetrates L-31 Rogue. Lgt. Nuclear Core destroyed. Gauss Rifle destroyed. Map ----- +----------------------------------------------------+ | ??# #?????????????????????????????????????? | | ??# """ #?????????????????????????????????????? | | ??# """ #?????????????????????????????????????? | | ??# """ #?????????????????????????????????????? | | ??# #?????????????????????????????????????? | | ### """ #?????????????????????????????????????? | | # """ #?????????????????????????????????????? | | # """ =#?????????????????????????????????????? | | # #????##########???????????????????????? | | ###+########### #???????????????????????? | | # """ #???????????????????????? | | =! # """ #???????????????????????? | | !% %%* # """ #???????????????????????? | | #####+#######!= # #???????????????????????? | | # ![% %#?# # !! #???????????????????????? | | # """"" #?# # !! #???????????????????????? | | # """"" #?# / !! #???????????????????????? | | # """"" #?# # #???????????????????????? | | # #?# ###########??????????????????????? | | # #?# # #??????????????????????? | | # #?# # " #???###+###????????????? | | # #?# # % #???# #????????????? | | ###########?# # !==[! ##### #####????????? | | ????????????# + =*%!%=!+% !& T +????????? | | ?????# # g[k=gl##### #####????????? | | ?????# # !! l@#???# #????????????? | | ?????# # #???### ###????????????? | | ?????# #####+##### ######??????"#??????????????? | | ?????# ????? ???###???????????%#??????????????? | | ?????# ?????? ????????????????? ??????????????? | | ?????+??????? ????????????????? #??????????????? | | ????????????? ????????????????? #??????????????? | | ???????????? ??????????????????#??????????????? | | ???????????? ??????????????????????????????????? | | ???????????? ??????????????????????????????????? | | ???????????? ??????????????????????????????????? | | ??????????? ??????????????????????????????????? | | ???????????###???????????????????????????????????? | | ?????????????????????????????????????????????????? | | ?????????????????????????????????????????????????? | | ?????????????????????????????????????????????????? | | ?????????????????????????????????????????????????? | | ?????????????????????????????????????????????????? | | ?????????????????????????????????????????????????? | | ?????????????????????????????????????????????????? | | ?????????????????????????????????????????????????? | | ?????????????????????????????????????????????????? | | ?????????????????????????????????????????????????? | | ?????????????????????????????????????????????????? | | ?????????????????????????????????????????????????? | +----------------------------------------------------+ Best States ------------- Heat Dissipation 31 Energy Generation 23 Energy Capacity 275 Matter Stores 300 Matter Capacity 300 Sight Range 20 Terrain Scan Density 10 Power Shielding 33 Evasion (%) 55 Targeting Accuracy 5 Item Schematics ----------------- None Robot Schematics ------------------ None Fabricated ------------ Nothing Alien Tech Used ----------------- None Achievements -------------- Troublemaker Challenges ------------ None Game ------ Seed MediumAntigravGenerator Manual? 0 Play Time 00:30:16 Cumulative 2.4 hours Start 2024.04.03 @ 18:07:32 End 2024.04.03 @ 18:38:04 Sessions 1 Manual Loads 0 Difficulty Rogue Special Mode None Game No. 3 Rogue 3 Adventurer 0 Explorer 0 Win Type - Total 0 Types 0/0/0/0/0/0/0/0/0 Lore% 1 Gallery% 6 Achievement% 6 Wizard Run 0 Options --------- Layout 1 ASCII 0 Keyboard 0 Movement Numpad Keybinds 0 Fullscreen 1 Font 24/Smallcaps Map View 50x35 Zoom Use 0% Tactical HUD 0 Map Filters NONE Filters NONE Steam 1 RUN: d2270294-a793-4c7f-8e87-02dc2452904b